bitfinex/quotes_BTCUSD_20240906
["timestamp","ask_amount","ask_price","bid_price","bid_amount"]
[1725655680841,0.1,53442.0,53433.0,0.1933]
[1725655681066,0.33017327,53437.0,53433.0,0.1933]
[1725655681326,0.1,53436.0,53433.0,0.1933]
[1725655681575,2.293013,53436.0,53427.0,0.00163]
[1725655681797,0.33017327,53428.0,53427.0,0.00163]
[1725655682028,0.33017327,53428.0,53413.0,0.00164]
[1725655682258,0.33017327,53419.0,53413.0,0.00164]
[1725655682479,0.33017327,53419.0,53391.0,0.00164]
[1725655682480,2.378113,53418.0,53391.0,0.00164]
[1725655682701,2.378113,53418.0,53394.0,0.3483]
[1725655682702,0.33017327,53398.0,53394.0,0.3483]
[1725655682938,0.33017327,53398.0,53391.0,0.00164]
[1725655682939,0.33017327,53410.0,53395.0,0.0037455]
[1725655683156,0.123,53418.0,53391.0,0.00164]
[1725655683157,0.33017327,53416.0,53398.0,0.3483]
[1725655683374,0.33017327,53416.0,53400.0,0.375]
[1725655683598,0.123,53418.0,53399.0,0.03896261]
[1725655683599,0.33017327,53410.0,53401.0,0.375]
[1725655683844,0.65430836,53415.0,53401.0,0.375]
[1725655683845,0.33017327,53404.0,53401.0,0.375]
[1725655684064,0.1,53403.0,53401.0,0.375]
[1725655684279,0.123,53403.0,53401.0,0.375]
[1725655684502,0.123,53403.0,53397.0,0.00014]
[1725655685158,0.1,53403.0,53397.0,0.001772]
[1725655686031,0.1,53403.0,53398.0,0.3547]
[1725655686261,0.1,53409.0,53399.0,0.181]
[1725655686641,0.1,53409.0,53399.0,0.2347472]
[1725655686842,0.1,53409.0,53400.0,0.3757]
[1725655687950,0.1,53409.0,53399.0,0.181]
[1725655687951,0.1,53409.0,53401.0,0.3757]
[1725655688126,0.1,53415.0,53401.0,0.3757]
[1725655688295,0.023,53414.0,53401.0,0.3757]
[1725655688498,0.33017327,53410.0,53401.0,0.3757]
[1725655688731,0.1,53409.0,53401.0,0.3757]
[1725655688900,0.023,53408.0,53401.0,0.3757]
[1725655689305,0.33017327,53403.0,53401.0,0.3757]
[1725655689507,0.33017327,53403.0,53397.0,0.001772]
[1725655689509,0.1,53402.0,53397.0,0.001772]
[1725655689872,0.123,53402.0,53397.0,0.001772]
[1725655690095,2.170013,53401.0,53397.0,0.001772]
[1725655690553,0.123,53400.0,53397.0,0.001772]
[1725655690764,2.170013,53399.0,53397.0,0.001772]
[1725655690992,2.170013,53399.0,53373.0,0.00164]
[1725655690993,0.34017327,53388.0,53373.0,0.00164]
[1725655691203,0.01,53386.0,53373.0,0.00164]
[1725655691420,0.01,53386.0,53361.0,0.55430836]
[1725655691421,0.33017327,53374.0,53358.0,0.3764]
[1725655691673,0.33017327,53374.0,53325.0,0.37674631]
[1725655691674,0.33017327,53359.0,53352.0,0.3422]
[1725655691880,0.33017327,53353.0,53344.0,0.3422]
[1725655692097,2.170013,53358.0,53343.0,0.00164]
[1725655692098,0.33017327,53346.0,53343.0,0.00164]
[1725655692329,1.66717327,53346.0,53343.0,0.00164]
[1725655692538,0.61397433,53346.0,53343.0,0.00164]
[1725655692753,0.61817327,53346.0,53343.0,0.00164]
[1725655692977,0.61817327,53346.0,53325.0,0.00168831]
[1725655692978,0.94834654,53346.0,53325.0,0.00168831]
[1725655693189,0.33017327,53326.0,53325.0,0.00168831]
[1725655693623,0.45317327,53326.0,53325.0,0.00168831]
[1725655693836,0.45317327,53326.0,53304.0,0.73770836]
[1725655693837,0.33017327,53311.0,53304.0,0.55430836]
[1725655694058,2.34609084,53326.0,53304.0,0.55430836]
[1725655694059,0.788,53310.0,53304.0,0.55430836]
[1725655694337,0.788,53310.0,53297.0,0.357]
[1725655694338,0.33017327,53309.0,53297.0,0.357]
[1725655694546,0.33017327,53303.0,53297.0,0.357]
[1725655694752,0.33017327,53303.0,53280.0,0.55430836]
[1725655694753,2.270013,53302.0,53289.0,0.357]
[1725655694960,0.1,53302.0,53289.0,0.357]
[1725655695175,0.33017327,53297.0,53289.0,0.357]
[1725655695604,0.1,53296.0,53289.0,0.357]
[1725655696022,0.023,53295.0,53289.0,0.357]
[1725655696241,0.3583,53313.0,53288.0,0.1869]
[1725655696242,0.33017327,53319.0,53290.0,0.01375268]
[1725655696458,0.55430836,53309.0,53293.0,0.3706]
[1725655696688,0.1,53308.0,53293.0,0.3706]
[1725655696950,0.1,53308.0,53294.0,0.00375181]
[1725655697175,0.539,53329.0,53299.0,0.1821]
[1725655697176,0.33017327,53326.0,53299.0,0.1821]
[1725655697374,0.55430836,53320.0,53302.0,0.3706]
[1725655697582,0.33017327,53326.0,53302.0,0.3706]
[1725655697583,0.33017327,53326.0,53305.0,0.002]
[1725655697789,0.33017327,53326.0,53308.0,0.3706]
[1725655697790,0.55430836,53325.0,53308.0,0.3706]
[1725655697994,0.33017327,53326.0,53309.0,0.00375061]
[1725655698217,0.33017327,53326.0,53308.0,0.3706]
[1725655698645,0.33017327,53320.0,53308.0,0.3706]
[1725655698864,0.33017327,53320.0,53290.0,0.02]
[1725655698865,0.33017327,53313.0,53301.0,0.3504]
[1725655699103,0.33017327,53305.0,53301.0,0.3504]
[1725655699327,0.33017327,53305.0,53294.0,0.3504]
[1725655699778,0.1904,53317.0,53294.0,0.3504]
[1725655699779,0.33017327,53298.0,53294.0,0.3504]
[1725655700023,0.1904,53317.0,53294.0,0.3504]
[1725655700024,0.33017327,53305.0,53294.0,0.3504]
[1725655700265,0.1,53298.0,53294.0,0.3504]
[1725655700486,0.45317327,53298.0,53294.0,0.3504]
[1725655702160,0.45317327,53298.0,53286.0,0.3466]
[1725655702161,0.50184732,53298.0,53286.0,0.3466]
[1725655702386,0.123,53298.0,53287.0,0.00375308]
[1725655702615,0.123,53298.0,53286.0,0.3466]
[1725655702616,0.35317327,53298.0,53286.0,0.3466]
[1725655702861,0.33017327,53298.0,53287.0,0.00375269]
[1725655703116,0.43017327,53298.0,53286.0,0.3466]
[1725655703822,0.33017327,53310.0,53297.0,0.373532]
[1725655704059,0.01,53332.0,53297.0,0.373532]
[1725655704060,0.07526,53315.0,53299.0,0.3719]
[1725655704279,0.33017327,53306.0,53299.0,0.3719]
[1725655704503,0.5492,53332.0,53299.0,0.3719]
[1725655704504,0.33017327,53300.0,53299.0,0.3719]
[1725655704773,0.33017327,53310.0,53299.0,0.3719]
[1725655705226,0.3584,53330.0,53300.0,0.00375157]
[1725655705227,0.075252,53321.0,53300.0,0.00375157]
[1725655705471,0.075252,53321.0,53299.0,0.3719]
[1725655705472,0.33017327,53305.0,53299.0,0.3719]
[1725655706258,0.33017327,53305.0,53297.0,0.001632]
[1725655706467,0.1825,53309.0,53297.0,0.001632]
[1725655706468,0.33017327,53299.0,53297.0,0.001632]
[1725655706728,2.170013,53298.0,53297.0,0.001632]
[1725655706943,2.293013,53298.0,53284.0,0.3647]
[1725655707168,0.33017327,53285.0,53284.0,0.3647]
[1725655707465,0.1,53285.0,53284.0,0.3647]
[1725655707924,0.12717201,53285.0,53284.0,0.3647]
[1725655708198,0.1,53285.0,53284.0,0.3647]
[1725655708476,0.1,53285.0,53267.0,0.37]
[1725655708477,2.170013,53285.0,53267.0,0.37]
[1725655708696,2.170013,53285.0,53249.0,0.37]
[1725655708697,0.33017327,53268.0,53249.0,0.37]
[1725655708945,0.1959,53282.0,53249.0,0.37]
[1725655708946,2.516313,53267.0,53262.0,0.55430836]
[1725655709175,2.516313,53267.0,53249.0,0.37]
[1725655709176,2.365913,53266.0,53249.0,0.37]
[1725655709412,0.33017327,53255.0,53241.0,0.37]
[1725655709644,0.33017327,53255.0,53243.0,0.00164]
[1725655709645,0.33017327,53244.0,53243.0,0.00164]
[1725655710166,0.33017327,53244.0,53243.0,0.55294]
[1725655710167,0.1,53244.0,53243.0,0.55294]
[1725655710645,0.45317327,53244.0,53243.0,0.00164]
[1725655712578,0.45317327,53244.0,53211.0,0.01]
[1725655712579,0.45317327,53244.0,53224.0,0.3785]
[1725655712826,0.45317327,53244.0,53220.0,0.1828]
[1725655712827,0.33017327,53225.0,53220.0,0.1828]
[1725655713031,0.123,53224.0,53220.0,0.1828]
[1725655713555,0.123,53224.0,53203.0,8.4e-07]
[1725655713556,0.01,53219.0,53203.0,8.4e-07]
[1725655713777,0.3629,53222.0,53203.0,8.4e-07]
[1725655713778,0.33017327,53210.0,53203.0,8.4e-07]
[1725655714026,0.33017327,53204.0,53203.0,8.4e-07]
[1725655714241,0.43017327,53204.0,53203.0,8.4e-07]
[1725655714725,0.45317327,53204.0,53203.0,8.4e-07]
[1725655714980,0.1,53204.0,53203.0,8.4e-07]
[1725655715267,0.02,53238.0,53203.0,0.56280084]
[1725655715268,0.33017327,53224.0,53203.0,0.56280084]
[1725655715520,0.5579,53236.0,53203.0,0.56280084]
[1725655715521,0.55430836,53218.0,53204.0,0.05688008]
[1725655715744,0.5579,53236.0,53204.0,0.05688008]
[1725655715745,0.33017327,53229.0,53204.0,0.05688008]
[1725655715961,0.35,53250.0,53204.0,0.05688008]
[1725655715962,0.33017327,53235.0,53216.0,0.1939]
[1725655716193,0.55430836,53228.0,53217.0,0.3566]
[1725655716427,0.33017327,53248.0,53219.0,0.01]
[1725655716651,0.55430836,53244.0,53225.0,0.1979]
[1725655716930,0.33017327,53248.0,53225.0,0.1979]
[1725655716931,0.55430836,53247.0,53225.0,0.1979]
[1725655717157,0.01956316,53263.0,53225.0,0.1979]
[1725655717158,0.33017327,53242.0,53226.0,0.00375691]
[1725655717425,0.33017327,53242.0,53225.0,0.385779]
[1725655717693,0.33017327,53242.0,53225.0,0.1979]
[1725655717905,0.55430836,53241.0,53225.0,0.1979]
[1725655718119,0.33017327,53235.0,53225.0,0.1979]
[1725655718597,0.55430836,53248.0,53225.0,0.1979]
[1725655718598,0.33017327,53241.0,53225.0,0.1979]
[1725655718812,0.55430836,53248.0,53226.0,0.0037571]
[1725655718813,0.33017327,53248.0,53226.0,0.0037571]
[1725655719062,0.5,53273.0,53227.0,0.02016571]
[1725655719063,0.33017327,53255.0,53227.0,0.02016571]
[1725655719280,0.55430836,53247.0,53229.0,0.3614]
[1725655719509,0.33017327,53248.0,53229.0,0.3614]
[1725655719744,0.33017327,53256.0,53231.0,0.3607]
[1725655719989,0.33017327,53256.0,53233.0,0.3607]
[1725655720229,0.33017327,53256.0,53236.0,0.002]
[1725655720463,0.33017327,53263.0,53237.0,0.36445558]
[1725655720680,0.55430836,53262.0,53241.0,0.3607]
[1725655720930,0.33017327,53275.0,53248.0,0.3607]
[1725655721159,0.32967494,53275.0,53252.0,0.3607]
[1725655721418,0.55430836,53280.0,53249.0,0.22432474]
[1725655721419,0.55430836,53280.0,53261.0,0.5452]
[1725655721679,0.33017327,53267.0,53262.0,0.3607]
[1725655722632,0.33017327,53267.0,53243.0,0.56430836]
[1725655722633,0.1818,53265.0,53243.0,0.1845]
[1725655722850,0.1818,53265.0,53216.0,0.02]
[1725655722851,0.33017327,53244.0,53240.0,0.3607]
[1725655723092,0.33017327,53241.0,53235.0,0.1845]
[1725655723325,0.1,53240.0,53235.0,0.1845]
[1725655723567,0.1,53240.0,53232.0,0.3607]
[1725655723815,0.33017327,53233.0,53228.0,0.1845]
[1725655724067,0.1,53232.0,53228.0,0.1845]
[1725655725233,0.5,53265.0,53228.0,0.1845]
[1725655725234,0.1,53239.0,53229.0,0.00375694]
[1725655725452,0.55430836,53242.0,53229.0,0.36445694]
[1725655725689,0.5565,53261.0,53229.0,0.36445694]
[1725655725690,0.33017327,53241.0,53229.0,0.3607]
[1725655725918,0.1,53240.0,53229.0,0.3607]
[1725655726170,0.33017327,53255.0,53230.0,0.00375635]
[1725655726381,0.55430836,53251.0,53232.0,0.3823]
[1725655726599,0.5729,53270.0,53232.0,0.3823]
[1725655726600,0.33017327,53248.0,53232.0,0.3823]
[1725655726894,0.33017327,53248.0,53233.0,0.06435854]
[1725655727104,0.05283138,53263.0,53233.0,0.06435854]
[1725655727105,0.33017327,53263.0,53243.0,0.3823]
[1725655727541,0.33017327,53263.0,53244.0,0.00375523]
[1725655728002,0.33017327,53277.0,53247.0,0.3758]
[1725655728301,0.5729,53281.0,53249.0,0.3758]
[1725655728302,0.33017327,53255.0,53249.0,0.3758]
[1725655729653,0.33017327,53255.0,53243.0,0.3623]
[1725655729654,0.499,53254.0,53243.0,0.3623]
[1725655729869,0.33017327,53247.0,53243.0,0.3623]
[1725655730090,0.1,53246.0,53243.0,0.3623]
[1725655730333,0.1,53246.0,53243.0,0.41715]
[1725655730582,0.1,53246.0,53243.0,0.3623]
[1725655730789,0.18,53269.0,53243.0,0.3623]
[1725655730790,0.33017327,53261.0,53243.0,0.3623]
[1725655731033,0.55430836,53259.0,53243.0,0.3623]
[1725655731273,0.33017327,53261.0,53243.0,0.3623]
[1725655731516,0.33017327,53261.0,53244.0,0.03623]
[1725655731732,0.42463138,53270.0,53243.0,0.3623]
[1725655731733,0.33017327,53247.0,53243.0,0.3623]
[1725655731951,0.33017327,53257.0,53243.0,0.3623]
[1725655732646,0.0246215,53266.0,53243.0,0.3623]
[1725655732647,0.33017327,53250.0,53243.0,0.3623]
[1725655732930,0.1,53249.0,53243.0,0.3623]
[1725655733392,0.1,53249.0,53236.0,0.19]
[1725655733608,0.02940808,53248.0,53243.0,0.00163]
[1725655734521,0.02940808,53248.0,53226.0,0.03]
[1725655734524,0.5,53222.0,53200.0,0.3762]
[1725655734764,0.33017327,53218.0,53213.0,0.3702]
[1725655734999,0.33017327,53225.0,53213.0,0.3702]
[1725655735238,0.12941917,53217.0,53214.0,0.00375817]
[1725655735516,0.12941917,53217.0,53213.0,0.3702]
[1725655735716,0.1,53217.0,53214.0,0.03702]
[1725655735935,0.1,53217.0,53213.0,0.3702]
[1725655736393,0.33017327,53225.0,53213.0,0.3652]
[1725655736637,0.33017327,53225.0,53203.0,8.4e-07]
[1725655736638,0.33017327,53218.0,53203.0,8.4e-07]
[1725655736905,2.270013,53224.0,53203.0,8.4e-07]
[1725655736906,0.1,53217.0,53203.0,8.4e-07]
[1725655737160,0.1,53224.0,53204.0,0.02017592]
[1725655737409,0.1,53224.0,53206.0,0.1963]
[1725655737651,0.1,53224.0,53207.0,0.01375745]
[1725655737884,0.1,53224.0,53208.0,0.1863]
[1725655738115,0.532,53245.0,53208.0,0.1863]
[1725655738116,0.33017327,53232.0,53208.0,0.1863]
[1725655738383,0.1,53239.0,53208.0,0.1863]
[1725655738384,0.33017327,53225.0,53208.0,0.1863]
[1725655738606,2.270013,53224.0,53208.0,0.1863]
[1725655738852,2.170013,53223.0,53208.0,0.1863]
[1725655739099,0.33017327,53225.0,53208.0,0.1863]
[1725655739100,0.02941967,53221.0,53208.0,0.1863]
[1725655739582,0.02941967,53221.0,53209.0,0.3531]
[1725655739583,0.33017327,53217.0,53209.0,0.3531]
[1725655739816,2.193013,53220.0,53209.0,0.3531]
[1725655739817,0.1,53216.0,53209.0,0.3531]
[1725655740046,0.023,53220.0,53209.0,0.3531]
[1725655740260,0.1,53222.0,53209.0,0.3531]
[1725655740261,0.1,53222.0,53210.0,0.0037583]
[1725655740481,0.1,53222.0,53209.0,0.40704]
[1725655740729,0.1,53222.0,53209.0,0.3531]
[1725655740941,0.1,53224.0,53209.0,0.3531]
[1725655741189,2.270013,53224.0,53209.0,0.3531]
[1725655741460,0.33017327,53218.0,53209.0,0.3531]
[1725655741734,0.1,53224.0,53209.0,0.3531]
[1725655741735,0.1,53217.0,53209.0,0.3531]
[1725655742024,0.33017327,53219.0,53203.0,8.4e-07]
[1725655742276,2.170013,53218.0,53203.0,8.4e-07]
[1725655742543,0.1,53217.0,53204.0,0.3511]
[1725655742752,0.1,53217.0,53203.0,0.00375911]
[1725655742753,0.04246547,53236.0,53203.0,0.00375911]
[1725655742754,0.33017327,53241.0,53210.0,0.1994]
[1725655743000,0.55430836,53231.0,53211.0,0.35485716]
[1725655743257,0.06202863,53252.0,53211.0,0.35485716]
[1725655743258,0.33098827,53255.0,53218.0,0.3595]
[1725655743504,0.55430836,53240.0,53220.0,0.3595]
[1725655743727,0.33017327,53248.0,53222.0,0.3595]
[1725655743949,0.215,53247.0,53223.0,0.00375662]
[1725655744165,0.215,53247.0,53224.0,0.3595]
[1725655744416,0.215,53247.0,53225.0,0.05933229]
[1725655744623,0.33017327,53248.0,53225.0,0.05933229]
[1725655744855,0.02942095,53242.0,53225.0,0.05933229]
[1725655745083,0.55430836,53241.0,53226.0,0.5515]
[1725655745297,0.02942095,53242.0,53226.0,0.5515]
[1725655745298,0.33017327,53236.0,53226.0,0.5515]
[1725655745507,2.50018627,53235.0,53218.0,0.1892]
[1725655745716,0.02942095,53242.0,53221.0,0.55430836]
[1725655745932,2.152,53241.0,53220.0,0.3623]
[1725655746199,2.152,53241.0,53209.0,0.00163]
[1725655746200,0.538,53253.0,53223.0,0.3717]
[1725655746202,0.02942655,53231.0,53223.0,0.3717]
[1725655746451,0.02942655,53231.0,53215.0,0.01]
[1725655746452,0.023,53252.0,53225.0,0.3717]
[1725655746697,0.55430836,53251.0,53230.0,0.3717]
[1725655746912,0.55430836,53251.0,53228.0,0.01]
[1725655746913,0.000815,53255.0,53234.0,0.5696]
[1725655747125,0.000815,53255.0,53239.0,0.1979]
[1725655747379,0.000815,53255.0,53241.0,0.1979]
[1725655747631,0.000815,53255.0,53242.0,0.3717]
[1725655747632,0.55430836,53254.0,53242.0,0.3717]
[1725655747868,0.35015964,53254.0,53242.0,0.3717]
[1725655748543,0.01998637,53254.0,53242.0,0.42866]
[1725655748545,0.000815,53255.0,53243.0,0.00375583]
[1725655748785,0.000815,53255.0,53242.0,0.42866]
[1725655749237,0.000815,53255.0,53247.0,0.3717]
[1725655749462,0.000815,53255.0,53250.0,0.3717]
[1725655749690,0.000815,53255.0,53251.0,0.05733551]
[1725655749934,0.000815,53255.0,53253.0,0.3717]
[1725655750458,0.000815,53255.0,53254.0,0.00375486]
[1725655750712,0.478,53280.0,53254.0,0.00375486]
[1725655750713,0.478,53280.0,53256.0,0.1979]
[1725655750949,0.33017327,53283.0,53256.0,0.1979]
[1725655750950,0.55430836,53274.0,53257.0,0.37495412]
[1725655751186,0.55430836,53274.0,53255.0,0.01]
[1725655751187,0.33017327,53283.0,53260.0,0.2079]
[1725655751449,0.05486078,53297.0,53258.0,0.06203943]
[1725655751450,0.55430836,53282.0,53263.0,0.5696]
[1725655751698,0.33017327,53290.0,53264.0,0.37545376]
[1725655751951,0.185,53289.0,53264.0,0.37545376]
[1725655752195,0.22343002,53289.0,53264.0,0.3717]
[1725655752455,0.53882,53298.0,53268.0,0.3717]
[1725655752456,0.00082,53298.0,53268.0,0.3717]
[1725655752672,0.00082,53298.0,53265.0,0.06171376]
[1725655752673,0.00082,53298.0,53274.0,0.1979]
[1725655752924,0.00082,53298.0,53285.0,0.4017]
[1725655753148,0.00082,53298.0,53286.0,0.20165167]
[1725655753423,0.00082,53298.0,53288.0,0.01]
[1725655753654,0.00082,53298.0,53294.0,0.5696]
[1725655753904,0.00082,53298.0,53295.0,0.38545099]
[1725655754136,0.00081,53303.0,53296.0,0.5696]
[1725655754379,0.00081,53303.0,53299.0,0.5696]
[1725655754632,0.000818,53309.0,53303.0,0.757204]
[1725655754922,0.000818,53309.0,53305.0,0.3717]
[1725655755150,0.03540053,53308.0,53305.0,0.3717]
[1725655755869,0.000818,53309.0,53305.0,0.3717]
[1725655756365,0.000818,53309.0,53283.0,0.01]
[1725655756366,0.000818,53309.0,53298.0,0.3667]
[1725655756623,0.000818,53309.0,53299.0,0.05661]
[1725655757334,0.000818,53309.0,53299.0,0.06036153]
[1725655757865,0.000818,53309.0,53300.0,0.3771]
[1725655758096,0.33099127,53309.0,53300.0,0.3771]
[1725655758622,0.33099127,53309.0,53296.0,0.1994]
[1725655758623,0.33017327,53302.0,53296.0,0.1994]
[1725655758866,0.33017327,53302.0,53297.0,0.05765]
[1725655759080,0.33017327,53302.0,53296.0,0.1994]
[1725655759081,0.1,53301.0,53296.0,0.1994]
[1725655759320,0.02938631,53307.0,53296.0,0.1994]
[1725655759321,0.02938631,53307.0,53298.0,0.3771]
[1725655759778,0.33017327,53303.0,53298.0,0.3771]
[1725655760251,0.1,53302.0,53298.0,0.3771]
[1725655760478,0.1,53302.0,53287.0,0.1897]
[1725655760703,0.33017327,53291.0,53290.0,0.3526]
[1725655761307,0.43017327,53291.0,53290.0,0.3526]
[1725655762196,0.33017327,53298.0,53290.0,0.3526]
[1725655762684,0.1,53316.0,53273.0,0.1985]
[1725655762685,0.33017327,53291.0,53273.0,0.1985]
[1725655762918,0.1951,53292.0,53271.0,0.351]
[1725655762919,0.33017327,53272.0,53271.0,0.351]
[1725655763156,0.43017327,53272.0,53271.0,0.351]
[1725655763879,0.4595787,53272.0,53271.0,0.351]
[1725655764100,0.43017327,53272.0,53271.0,0.351]
[1725655764326,0.43017327,53272.0,53271.0,0.3861]
[1725655764803,0.1,53272.0,53271.0,0.351]
[1725655765035,0.33017327,53279.0,53271.0,0.351]
[1725655765293,0.799458,53309.0,53273.0,0.3591]
[1725655765294,0.33017327,53287.0,53273.0,0.3591]
[1725655765548,0.1855,53301.0,53273.0,0.3591]
[1725655765549,0.33017327,53279.0,53273.0,0.3591]
[1725655766015,0.1,53278.0,53273.0,0.3591]
[1725655766254,0.022,53315.0,53273.0,0.3591]
[1725655766255,0.187661,53288.0,53275.0,0.3909]
[1725655766486,0.187656,53289.0,53279.0,0.18769]
[1725655766716,0.187656,53289.0,53276.0,0.31721273]
[1725655766717,0.187661,53288.0,53280.0,0.38465269]
[1725655766955,0.02939448,53285.0,53282.0,0.3909]
[1725655767186,0.02939448,53285.0,53283.0,0.19325225]
[1725655767187,0.187673,53284.0,53283.0,0.19325225]
[1725655767417,0.187673,53284.0,53283.0,0.1895]
[1725655767688,0.02939448,53285.0,53282.0,0.3809]
[1725655767689,0.187677,53283.0,53282.0,0.3809]
[1725655768385,0.287677,53283.0,53282.0,0.3809]
[1725655768620,0.02939448,53285.0,53282.0,0.3809]
[1725655768868,0.187677,53283.0,53282.0,0.3809]
[1725655769383,0.02939448,53285.0,53282.0,0.3809]
[1725655769612,0.02939448,53285.0,53283.0,0.19645255]
[1725655769847,0.02939448,53285.0,53284.0,0.05873526]
[1725655770072,0.02939448,53285.0,53283.0,0.19645255]
[1725655770073,0.02939448,53285.0,53283.0,0.1927]
[1725655770302,0.02939448,53285.0,53282.0,0.001628]
[1725655770533,0.06678213,53284.0,53282.0,0.001628]
[1725655770757,2.17849322,53284.0,53282.0,0.001628]
[1725655770985,0.1,53283.0,53282.0,0.001628]
[1725655771487,0.1,53283.0,53263.0,0.55430836]
[1725655771488,0.33017327,53269.0,53263.0,0.55430836]
[1725655771974,0.33017327,53269.0,53261.0,0.5732]
[1725655771975,0.1,53268.0,53261.0,0.5732]
[1725655773362,0.1,53268.0,53262.0,0.00375436]
[1725655773622,0.00848022,53284.0,53262.0,0.00375436]
[1725655773623,0.33017327,53283.0,53264.0,0.3805]
[1725655773867,0.33017327,53266.0,53265.0,0.1927]
[1725655774598,0.33017327,53266.0,53264.0,0.3805]
[1725655775107,0.1,53265.0,53264.0,0.3805]
[1725655775576,0.33017327,53272.0,53264.0,0.3805]
[1725655775577,0.1,53271.0,53264.0,0.3805]
[1725655776028,0.02940786,53265.0,53264.0,0.3805]
[1725655776487,0.02940786,53265.0,53252.0,0.03]
[1725655776488,0.35958113,53265.0,53252.0,0.1896]
[1725655776764,0.35958113,53265.0,53239.0,0.3641]
[1725655776765,0.33017327,53253.0,53239.0,0.3641]
[1725655777009,0.33017327,53253.0,53228.0,0.02162]
[1725655777010,0.33017327,53244.0,53232.0,0.3641]
[1725655777268,0.33017327,53238.0,53228.0,0.00162]
[1725655777513,0.33017327,53231.0,53228.0,0.00162]
[1725655777742,0.33017327,53231.0,53230.0,0.55430836]
[1725655777971,0.33017327,53231.0,53228.0,0.00162]
[1725655777972,0.1,53231.0,53228.0,0.00162]
[1725655778214,0.1,53230.0,53228.0,0.00162]
[1725655778914,0.12942719,53230.0,53228.0,0.00162]
[1725655779418,0.02942719,53230.0,53228.0,0.00162]
[1725655779883,0.35960046,53230.0,53228.0,0.00162]
[1725655780113,0.1,53229.0,53228.0,0.00162]
[1725655780355,0.2816,53229.0,53228.0,0.00162]
[1725655780810,1.3616,53229.0,53228.0,0.00162]
[1725655781487,1.1136,53229.0,53228.0,0.00162]
[1725655781724,0.1,53229.0,53228.0,0.00162]
[1725655781955,0.0487014,53230.0,53228.0,0.00162]
[1725655782207,0.33017327,53230.0,53228.0,0.00162]
[1725655782437,2.170013,53229.0,53228.0,0.00162]
[1725655783120,0.521,53229.0,53228.0,0.00162]
[1725655783574,0.1,53229.0,53228.0,0.00162]
[1725655783808,0.265,53229.0,53228.0,0.00162]
[1725655784046,0.265,53229.0,53217.0,1e-06]
[1725655784047,0.33017327,53218.0,53217.0,1e-06]
[1725655784329,0.33017327,53218.0,53200.0,0.006]
[1725655784330,0.53257327,53218.0,53200.0,0.006]
[1725655784616,0.33017327,53209.0,53204.0,0.55430836]
[1725655784847,0.33017327,53209.0,53191.0,0.76027355]
[1725655784848,0.33017327,53205.0,53191.0,0.41167355]
[1725655785080,2.590913,53208.0,53191.0,0.41167355]
[1725655785081,0.33017327,53195.0,53191.0,0.41167355]
[1725655785302,0.532,53194.0,53191.0,0.41167355]
[1725655785555,0.0997742,53194.0,53191.0,0.41167355]
[1725655786015,0.0947742,53194.0,53191.0,0.41167355]
[1725655786482,0.3209,53208.0,53191.0,0.41167355]
[1725655786705,0.3209,53208.0,53192.0,0.04519922]
[1725655786706,0.55430836,53207.0,53192.0,0.04519922]
[1725655786964,0.3209,53208.0,53193.0,0.00375918]
[1725655787208,0.33017327,53216.0,53194.0,0.3752]
[1725655787420,0.55430836,53212.0,53195.0,0.00375851]
[1725655787643,0.33017327,53216.0,53195.0,0.20065851]
[1725655787644,0.02943623,53205.0,53195.0,0.20065851]
[1725655787867,0.33017327,53209.0,53195.0,0.1969]
[1725655788096,0.33017327,53202.0,53191.0,0.41167355]
[1725655788829,0.1,53201.0,53191.0,0.41167355]
[1725655789757,0.19656343,53202.0,53191.0,0.41167355]
[1725655790262,0.012,53223.0,53191.0,0.41167355]
[1725655790263,0.3731,53238.0,53202.0,0.1861]
[1725655790534,1.60630836,53237.0,53208.0,0.01]
[1725655790787,1.60630836,53237.0,53203.0,0.00375716]
[1725655790788,0.33017327,53235.0,53209.0,0.1861]
[1725655791024,0.33017327,53235.0,53209.0,0.1898574]
[1725655791466,0.3731,53238.0,53209.0,0.1898574]
[1725655791693,0.51507327,53242.0,53209.0,0.3777944]
[1725655792036,0.51507327,53242.0,53215.0,0.01]
[1725655792285,0.51507327,53242.0,53213.0,0.0037572]
[1725655792286,0.33017327,53235.0,53213.0,0.0037572]
[1725655792549,0.33017327,53235.0,53216.0,0.0037572]
[1725655792802,0.1849,53242.0,53216.0,0.0037572]
[1725655792803,0.51507327,53242.0,53216.0,0.0037572]
[1725655793053,0.51507327,53242.0,53217.0,0.1933]
[1725655793054,0.33017327,53242.0,53217.0,0.1933]
[1725655793320,0.33017327,53242.0,53218.0,0.38385669]
[1725655793543,0.3731,53244.0,53218.0,0.38385669]
[1725655793546,0.33017327,53235.0,53218.0,0.3801]
[1725655793777,0.33017327,53235.0,53205.0,0.02]
[1725655793778,0.3731,53244.0,53212.0,0.3801]
[1725655793779,0.33017327,53228.0,53212.0,0.3801]
[1725655794222,0.1,53227.0,53213.0,0.00375753]
[1725655794447,0.1,53227.0,53212.0,0.37385753]
[1725655794928,0.1,53227.0,53213.0,0.00575761]
[1725655795195,0.1,53234.0,53214.0,0.187919]
[1725655795431,0.1,53234.0,53211.0,0.002]
[1725655795432,0.000816,53235.0,53215.0,0.01375682]
[1725655795684,0.000816,53235.0,53216.0,0.1848]
[1725655795920,0.000816,53235.0,53217.0,0.00375655]
[1725655796416,0.000816,53235.0,53221.0,0.375786]
[1725655796671,0.000816,53235.0,53224.0,0.187882]
[1725655796918,0.000816,53235.0,53225.0,0.00375615]
[1725655797191,0.000816,53235.0,53201.0,0.375929]
[1725655797192,0.33098927,53235.0,53205.0,0.01]
[1725655797428,0.33098927,53235.0,53202.0,0.002]
[1725655797429,0.33098927,53235.0,53217.0,0.3482]
[1725655797677,0.33098927,53235.0,53217.0,0.40525709]
[1725655798146,0.095,53234.0,53217.0,0.40525709]